[Event "4th Paytakht Cup 2019"]
[Site "Tehran"]
[Date "2019.11.05"]
[Round "7.8"]
[White "Darini, Pouria"]
[Black "Zahedifar, Anahita"]
[Result "1-0"]
[ECO "B12"]
[WhiteElo "2427"]
[BlackElo "2082"]
[Annotator "RC"]
[PlyCount "47"]
[EventDate "2019.10.30"]
[EventType "swiss"]
[EventCountry "IRI"]
[SourceTitle "playchess.com"]
[Source "ChessBase"]
[SourceQuality "1"]
[TimeControl "5400+30"]

1. e4 {[%emt 0:03:31]} c6 {[%emt 0:00:00]} 2. d4 {[%emt 0:00:01]} d5 {[%emt 0:00:00]} 3. e5 {[%emt 0:00:05]} c5 {[%emt 0:00:00]} 4. dxc5 {[%emt 0:00:03]} e6 {[%emt 0:00:00]} 5. a3 {[%emt 0:00:05]} Bxc5 {[%emt 0:00:41]} 6. Qg4 {[%emt 0:00:11]} Ne7 {[%emt 0:04:08]} 7. Nf3 {[%emt 0:00:23]} Ng6 {[%emt 0:04:11]} 8. Bd3 {[%emt 0:11:28]} Qc7 {[%emt 0:06:54]} 9. O-O {[%emt 0:15:27]} Nc6 {[%emt 0:07:32]} 10. Re1 {[%emt 0:01:47]} Nce7 {[%emt 0:08:24]} 11. b4 {[%emt 0:12:39]} Bb6 {[%emt 0:01:01]} 12. Nbd2 {[%emt 0:02:47]} Nf5 {[%emt 0:06:34]} 13. c4 {[%emt 0:06:30]} Qd8 {[%emt 0:06:06]} 14. cxd5 {[%emt 0:02:26]} h5 {[%emt 0:06:42]} 15. Qc4 {[%emt 0:08:37]} exd5 {[%emt 0:03:50]} 16. Qc2 {[%emt 0:00:08]} Nge7 {[%emt 0:05:43]} 17. e6 {[%emt 0:00:06]} fxe6 {[%emt 0:02:17]} 18. Bxf5 {[%emt 0:00:13]} exf5 {[%emt 0:00:04]} 19. Nb3 {[%emt 0:01:21]} O-O {[%emt 0:04:47]} 20. Bg5 {[%emt 0:00:35]} Re8 {[%emt 0:00:52]} 21. Qe2 {[%emt 0:02:34]} Qd7 {[%emt 0:02:17]} 22. Nc5 {[%emt 0:02:50]} Bxc5 {[%emt 0:01:51]} 23. bxc5 {[%emt 0:00:03]} Kf8 {[%emt 0:00:07]} 24. Ne5 {[%emt 0:00:29]} 1-0